Workbook

Sheet DATA
A1: start. číslo | B1: požární útok | C1: požární útok II. pokus | D1: PÚ umístění (body) | E1: útok CTIF | F1: TB | G1: E + F | H1: útok CTIF II. pokus | I1: TB | J1: H+I | K1: útok CTIF umístění (body) | L1: 4 x 60 metrů | M1: 4 x 60 metrů II. pokus | N1: 4 x 60 m umístění (body) | O1: štafeta CTIF | P1: TB | Q1: O+P | R1: štafeta CTIF II. pokus | S1: TB | T1: R+S | U1: štaf. CTIF umístění (body) | V1: ZPV | W1: TB | X1: V+W | Y1: ZPV II. pokus | Z1: TB | AA1: Y+Z | AB1: ZPV umístění (body) | AC1: štafeta dvojic | AD1: TB | AE1: AC+AD | AF1: štafeta dvojic II. pokus | AG1: TB | AH1: AF+AG | AI1: dvojice umístění (body) | AJ1: horší útok | AK1: lepší útok | AL1: horší útok CTIF | AM1: lepší útok CTIF | AN1: horších 4 x 60 m | AO1: lepších 4 x 60 m | AP1: horší štafeta CTIF | AQ1: lepší štafeta CTIF | AR1: horší ZPV | AS1: lepší ZPV | AT1: horší štafeta dvojic | AU1: lepší štafeta dvojic | AV1: horší čas 2-ti nejlepších jednotlivců | AW1: lepší čas 2 nejlepších jednotlivců | AX1: jednotlivci umístění (body) | AY1: celkové umístění | AZ1: družstvo SDH | BA1: kategorie | BB1: součet umístění družstev | BC1: body před soutěží | BD1: body za umístění | BE1: body po soutěži
A4: 4 | B4: 0.0002506944444 | C4: 0.0002479166667 | D4: 1 | E4: 0.04166666667 | F4: 0 | G4: =IF(SUM(E4:F4)<>0,SUM(E4:F4),0.0416666666666667) -> 0.04166666667 | H4: 0.04166666667 | I4: 0 | J4: =IF(SUM(H4:I4)<>0,SUM(H4:I4),0.0416666666666667) -> 0.04166666667 | L4: 0.0005905092593 | M4: NP | N4: 2 | O4: 0.04166666667 | P4: 0 | Q4: =IF(SUM(O4:P4)<>0,SUM(O4:P4),0.0416666666666667) -> 0.04166666667 | R4: 0.04166666667 | S4: 0 | T4: =IF(SUM(R4:S4)<>0,SUM(R4:S4),0.0416666666666667) -> 0.04166666667 | V4: 0.04166666667 | W4: 0 | X4: =IF(SUM(V4:W4)<>0,SUM(V4:W4),0.0416666666666667) -> 0.04166666667 | Y4: 0.04166666667 | Z4: 0 | AA4: =IF(SUM(Y4:Z4)<>0,SUM(Y4:Z4),0.0416666666666667) -> 0.04166666667 | AC4: 0.04166666667 | AD4: 0 | AE4: =IF(SUM(AC4:AD4)<>0,SUM(AC4:AD4),0.0416666666666667) -> 0.04166666667 | AF4: 0.04166666667 | AG4: 0 | AH4: =IF(SUM(AF4:AG4)<>0,SUM(AF4:AG4),0.0416666666666667) -> 0.04166666667 | AJ4: =IF(MINA(B4,C4)=0,0.0416666666666667,MAX(B4,C4)) -> 0.0002506944444 | AK4: =IF(MIN(B4,C4)=0,0.0416666666666667,MIN(B4,C4)) -> 0.0002479166667 | AL4: =IF(MINA(E4,H4)=0,0.0416666666666667,MAX(G4,J4)) -> 0.04166666667 | AM4: =IF(MIN(E4,H4)=0,0.0416666666666667,MIN(G4,J4)) -> 0.04166666667 | AN4: =IF(MINA(L4,M4)=0,0.0416666666666667,MAX(L4,M4)) -> 0.04166666667 | AO4: =IF(MIN(L4,M4)=0,0.0416666666666667,MIN(L4,M4)) -> 0.0005905092593 | AP4: =IF(MINA(O4,R4)=0,0.0416666666666667,MAX(Q4,T4)) -> 0.04166666667 | AQ4: =IF(MIN(O4,R4)=0,0.0416666666666667,MIN(Q4,T4)) -> 0.04166666667 | AR4: =IF(MINA(V4,Y4)=0,0.0416666666666667,MAX(X4,AA4)) -> 0.04166666667 | AS4: =IF(MIN(V4,Y4)=0,0.0416666666666667,MIN(X4,AA4)) -> 0.04166666667 | AT4: =IF(MINA(AC4,AF4)=0,0.0416666666666667,MAX(AE4,AH4)) -> 0.04166666667 | AU4: =IF(MIN(AC4,AF4)=0,0.0416666666666667,MIN(AE4,AH4)) -> 0.04166666667 | AV4: 0 | AW4: 0.0003431712963 | AX4: 1 | AY4: 1 | AZ4: ČEPERKA | BA4: starší žáci | BB4: =SUM(D4,K4,N4,U4,AB4,AI4,AX4) -> 4
A5: 3 | B5: NP | C5: 0.0002701388889 | D5: 4 | E5: 0.04166666667 | F5: 0 | G5: 0.04166666667 | H5: 0.04166666667 | I5: 0 | J5: 0.04166666667 | L5: 0.0005516203704 | M5: 0.0006619212963 | N5: 1 | O5: 0.04166666667 | P5: 0 | Q5: 0.04166666667 | R5: 0.04166666667 | S5: 0 | T5: 0.04166666667 | V5: 0.04166666667 | W5: 0 | X5: 0.04166666667 | Y5: 0.04166666667 | Z5: 0 | AA5: 0.04166666667 | AC5: 0.04166666667 | AD5: 0 | AE5: 0.04166666667 | AF5: 0.04166666667 | AG5: 0 | AH5: 0.04166666667 | AJ5: 0.04166666667 | AK5: 0.0002701388889 | AL5: 0.04166666667 | AM5: 0.04166666667 | AN5: 0.0006619212963 | AO5: 0.0005516203704 | AP5: 0.04166666667 | AQ5: 0.04166666667 | AR5: 0.04166666667 | AS5: 0.04166666667 | AT5: 0.04166666667 | AU5: 0.04166666667 | AV5: 0 | AW5: 0.0003461805556 | AX5: 2 | AY5: 2 | AZ5: CHOLTICE | BA5: starší žáci | BB5: 7
A6: 1 | B6: 0.0002854166667 | C6: 0.000268287037 | D6: 2 | E6: 0.04166666667 | F6: 0 | G6: 0.04166666667 | H6: 0.04166666667 | I6: 0 | J6: 0.04166666667 | L6: 0.0006135416667 | M6: 0.0006247685185 | N6: 3 | O6: 0.04166666667 | P6: 0 | Q6: 0.04166666667 | R6: 0.04166666667 | S6: 0 | T6: 0.04166666667 | V6: 0.04166666667 | W6: 0 | X6: 0.04166666667 | Y6: 0.04166666667 | Z6: 0 | AA6: 0.04166666667 | AC6: 0.04166666667 | AD6: 0 | AE6: 0.04166666667 | AF6: 0.04166666667 | AG6: 0 | AH6: 0.04166666667 | AJ6: 0.0002854166667 | AK6: 0.000268287037 | AL6: 0.04166666667 | AM6: 0.04166666667 | AN6: 0.0006247685185 | AO6: 0.0006135416667 | AP6: 0.04166666667 | AQ6: 0.04166666667 | AR6: 0.04166666667 | AS6: 0.04166666667 | AT6: 0.04166666667 | AU6: 0.04166666667 | AV6: 0 | AW6: 0.0003578703704 | AX6: 4 | AY6: 3 | AZ6: SLEPOTICE | BA6: starší žáci | BB6: 9
A7: 6 | B7: 0.0002925925926 | C7: 0.0003357638889 | D7: 5 | E7: 0.04166666667 | F7: 0 | G7: 0.04166666667 | H7: 0.04166666667 | I7: 0 | J7: 0.04166666667 | L7: NP | M7: 0.000621875 | N7: 4 | O7: 0.04166666667 | P7: 0 | Q7: 0.04166666667 | R7: 0.04166666667 | S7: 0 | T7: 0.04166666667 | V7: 0.04166666667 | W7: 0 | X7: 0.04166666667 | Y7: 0.04166666667 | Z7: 0 | AA7: 0.04166666667 | AC7: 0.04166666667 | AD7: 0 | AE7: 0.04166666667 | AF7: 0.04166666667 | AG7: 0 | AH7: 0.04166666667 | AJ7: 0.0003357638889 | AK7: 0.0002925925926 | AL7: 0.04166666667 | AM7: 0.04166666667 | AN7: 0.04166666667 | AO7: 0.000621875 | AP7: 0.04166666667 | AQ7: 0.04166666667 | AR7: 0.04166666667 | AS7: 0.04166666667 | AT7: 0.04166666667 | AU7: 0.04166666667 | AV7: 0 | AW7: 0.0003496527778 | AX7: 3 | AY7: 4 | AZ7: CHLUMEC NAD CIDLINOU | BA7: starší žáci | BB7: 12
A8: 5 | B8: 0.0002697916667 | C8: 0.0003371527778 | D8: 3 | E8: 0.04166666667 | F8: 0 | G8: 0.04166666667 | H8: 0.04166666667 | I8: 0 | J8: 0.04166666667 | L8: NP | M8: 0.0006891203704 | N8: 6 | O8: 0.04166666667 | P8: 0 | Q8: 0.04166666667 | R8: 0.04166666667 | S8: 0 | T8: 0.04166666667 | V8: 0.04166666667 | W8: 0 | X8: 0.04166666667 | Y8: 0.04166666667 | Z8: 0 | AA8: 0.04166666667 | AC8: 0.04166666667 | AD8: 0 | AE8: 0.04166666667 | AF8: 0.04166666667 | AG8: 0 | AH8: 0.04166666667 | AJ8: 0.0003371527778 | AK8: 0.0002697916667 | AL8: 0.04166666667 | AM8: 0.04166666667 | AN8: 0.04166666667 | AO8: 0.0006891203704 | AP8: 0.04166666667 | AQ8: 0.04166666667 | AR8: 0.04166666667 | AS8: 0.04166666667 | AT8: 0.04166666667 | AU8: 0.04166666667 | AV8: 0 | AW8: 0.0004525462963 | AX8: 6 | AY8: 5 | AZ8: STÉBLOVÁ | BA8: starší žáci | BB8: 15
A9: 9 | B9: 0.0004328703704 | C9: 0.000337037037 | D9: 6 | E9: 0.04166666667 | F9: 0 | G9: 0.04166666667 | H9: 0.04166666667 | I9: 0 | J9: 0.04166666667 | L9: 0.00063125 | M9: 0.0006828703704 | N9: 5 | O9: 0.04166666667 | P9: 0 | Q9: 0.04166666667 | R9: 0.04166666667 | S9: 0 | T9: 0.04166666667 | V9: 0.04166666667 | W9: 0 | X9: 0.04166666667 | Y9: 0.04166666667 | Z9: 0 | AA9: 0.04166666667 | AC9: 0.04166666667 | AD9: 0 | AE9: 0.04166666667 | AF9: 0.04166666667 | AG9: 0 | AH9: 0.04166666667 | AJ9: 0.0004328703704 | AK9: 0.000337037037 | AL9: 0.04166666667 | AM9: 0.04166666667 | AN9: 0.0006828703704 | AO9: 0.00063125 | AP9: 0.04166666667 | AQ9: 0.04166666667 | AR9: 0.04166666667 | AS9: 0.04166666667 | AT9: 0.04166666667 | AU9: 0.04166666667 | AV9: 0 | AW9: 0.0004505787037 | AX9: 5 | AY9: 6 | AZ9: HORNÍ ROVEŇ | BA9: starší žáci | BB9: 16
A10: 7 | B10: 0.0005197916667 | C10: 0.0005648148148 | D10: 7 | E10: 0.04166666667 | F10: 0 | G10: 0.04166666667 | H10: 0.04166666667 | I10: 0 | J10: 0.04166666667 | L10: 0.0007434027778 | M10: 0.0007021990741 | N10: 8 | O10: 0.04166666667 | P10: 0 | Q10: 0.04166666667 | R10: 0.04166666667 | S10: 0 | T10: 0.04166666667 | V10: 0.04166666667 | W10: 0 | X10: 0.04166666667 | Y10: 0.04166666667 | Z10: 0 | AA10: 0.04166666667 | AC10: 0.04166666667 | AD10: 0 | AE10: 0.04166666667 | AF10: 0.04166666667 | AG10: 0 | AH10: 0.04166666667 | AJ10: 0.0005648148148 | AK10: 0.0005197916667 | AL10: 0.04166666667 | AM10: 0.04166666667 | AN10: 0.0007434027778 | AO10: 0.0007021990741 | AP10: 0.04166666667 | AQ10: 0.04166666667 | AR10: 0.04166666667 | AS10: 0.04166666667 | AT10: 0.04166666667 | AU10: 0.04166666667 | AV10: 0 | AW10: 0.0005086805556 | AX10: 7 | AY10: 7 | AZ10: KOMÁROV | BA10: starší žáci | BB10: 22
A11: 8 | B11: 0.0005385416667 | C11: 0.000703125 | D11: 8 | E11: 0.04166666667 | F11: 0 | G11: 0.04166666667 | H11: 0.04166666667 | I11: 0 | J11: 0.04166666667 | L11: 0.0006891203704 | M11: NP | N11: 6 | O11: 0.04166666667 | P11: 0 | Q11: 0.04166666667 | R11: 0.04166666667 | S11: 0 | T11: 0.04166666667 | V11: 0.04166666667 | W11: 0 | X11: 0.04166666667 | Y11: 0.04166666667 | Z11: 0 | AA11: 0.04166666667 | AC11: 0.04166666667 | AD11: 0 | AE11: 0.04166666667 | AF11: 0.04166666667 | AG11: 0 | AH11: 0.04166666667 | AJ11: 0.000703125 | AK11: 0.0005385416667 | AL11: 0.04166666667 | AM11: 0.04166666667 | AN11: 0.04166666667 | AO11: 0.0006891203704 | AP11: 0.04166666667 | AQ11: 0.04166666667 | AR11: 0.04166666667 | AS11: 0.04166666667 | AT11: 0.04166666667 | AU11: 0.04166666667 | AV11: 0 | AW11: 0.0005141203704 | AX11: 9 | AY11: 8 | AZ11: VELINY | BA11: starší žáci | BB11: 23
A12: 2 | B12: 0.0007331018519 | C12: 0.0007274305556 | D12: 9 | E12: 0.04166666667 | F12: 0 | G12: 0.04166666667 | H12: 0.04166666667 | I12: 0 | J12: 0.04166666667 | L12: 0.0007553240741 | M12: 0.0008048611111 | N12: 9 | O12: 0.04166666667 | P12: 0 | Q12: 0.04166666667 | R12: 0.04166666667 | S12: 0 | T12: 0.04166666667 | V12: 0.04166666667 | W12: 0 | X12: 0.04166666667 | Y12: 0.04166666667 | Z12: 0 | AA12: 0.04166666667 | AC12: 0.04166666667 | AD12: 0 | AE12: 0.04166666667 | AF12: 0.04166666667 | AG12: 0 | AH12: 0.04166666667 | AJ12: 0.0007331018519 | AK12: 0.0007274305556 | AL12: 0.04166666667 | AM12: 0.04166666667 | AN12: 0.0008048611111 | AO12: 0.0007553240741 | AP12: 0.04166666667 | AQ12: 0.04166666667 | AR12: 0.04166666667 | AS12: 0.04166666667 | AT12: 0.04166666667 | AU12: 0.04166666667 | AV12: 0 | AW12: 0.0005135416667 | AX12: 8 | AY12: 9 | AZ12: HOLICE | BA12: starší žáci | BB12: 26

Sheet JEDNOTLIVCI
A1: start. číslo | B1: I. rozběh | C1: II. rozběh | D1: horší běh | E1: lepší běh | F1: kategorie | G1: součet časů 2 nejlepších | H1: součet časů 2 nejlepších | I1: umístění jednotlivců | J1: jméno | K1: družstvo SDH
A4: 29 | B4: 0.0001803240741 | C4: 0.000171412037 | D4: =IF(MINA(B4,C4)=0,0.0416666666666667,MAX(B4,C4)) -> 0.0001803240741 | E4: =IF(MIN(B4,C4)=0,0.0416666666666667,MIN(B4,C4)) -> 0.000171412037 | F4: starší žáci | G4: 0.04166666667 | I4: 1 | J4: ŠMEJZOVÁ Nikol | K4: ČEPERKA | L4: h
A5: 53 | B5: 0.0001717592593 | C5: 0.0002001157407 | D5: 0.0002001157407 | E5: 0.0001717592593 | F5: starší žáci | G5: 0.04166666667 | I5: 2 | J5: SEDLÁKOVÁ Kristína | K5: ČEPERKA | L5: h | M5: =E4+E5 -> 0.0003431712963
A6: 35 | B6: 0.0002060185185 | C6: NP | D6: 0.04166666667 | E6: 0.0002060185185 | F6: starší žáci | G6: 0.04166666667 | I6: 6 | J6: KOŽENÁ Karolína | K6: ČEPERKA | L6: h
A7: 21 | B7: 0.0002273148148 | C7: 0.0002115740741 | D7: 0.0002273148148 | E7: 0.0002115740741 | F7: starší žáci | G7: 0.04166666667 | I7: 8 | J7: DVOŘÁKOVÁ Eliška | K7: ČEPERKA | L7: h
A8: 56 | B8: NP | C8: NP | D8: 0.04166666667 | E8: 0.04166666667 | F8: starší žáci | G8: 0.04166666667 | I8: 18 | J8: SEDLÁK Patrik | K8: ČEPERKA | L8: k
A9: 22 | B9: 0.0002546296296 | C9: 0.0002556712963 | D9: 0.0002556712963 | E9: 0.0002546296296 | F9: starší žáci | I9: 15 | J9: PETERA Vojtěch | K9: HOLICE | L9: k
A10: 23 | B10: 0.000258912037 | C10: 0.0003940972222 | D10: 0.0003940972222 | E10: 0.000258912037 | F10: starší žáci | G10: 0.04166666667 | I10: 13 | J10: PILAŘOVÁ Iva | K10: HOLICE | L10: h | M10: =E9+E10 -> 0.0005135416667
A11: 39 | B11: 0.0002743055556 | C11: 0.000287037037 | D11: 0.000287037037 | E11: 0.0002743055556 | F11: starší žáci | G11: 0.04166666667 | I11: 16 | J11: HORÁKOVÁ Sabina | K11: HOLICE | L11: h
A12: 25 | B12: 0.0002354166667 | C12: 0.0002229166667 | D12: 0.0002354166667 | E12: 0.0002229166667 | F12: starší žáci | G12: 0.04166666667 | I12: 9 | J12: BINKOVÁ Denisa | K12: HORNÍ ROVEŇ | L12: h
A13: 31 | B13: 0.000330787037 | C13: 0.000227662037 | D13: 0.000330787037 | E13: 0.000227662037 | F13: starší žáci | G13: 0.04166666667 | I13: 10 | J13: GALLIKOVÁ Aneta | K13: HORNÍ ROVEŇ | L13: h | M13: =E12+E13 -> 0.0004505787037
A14: 47 | B14: 0.0002465277778 | C14: 0.0002454861111 | D14: 0.0002465277778 | E14: 0.0002454861111 | F14: starší žáci | G14: 0.04166666667 | I14: 11 | J14: ŠTĚPÁNKOVÁ Lenka | K14: HORNÍ ROVEŇ | L14: h
A15: 57 | B15: 0.0002949074074 | C15: 0.0002988425926 | D15: 0.0002988425926 | E15: 0.0002949074074 | F15: starší žáci | G15: 0.04166666667 | I15: 20 | J15: ŠTĚPÁNKOVÁ Petra | K15: HORNÍ ROVEŇ | L15: h
A16: 30 | B16: 0.0001482638889 | C16: 0.0001709490741 | D16: 0.0001709490741 | E16: 0.0001482638889 | F16: starší žáci | G16: 0.04166666667 | I16: 1 | J16: DRAHORÁD Tomáš | K16: CHLUMEC NAD CIDLINOU | L16: k
A17: 27 | B17: 0.0002013888889 | C17: 0.0002038194444 | D17: 0.0002038194444 | E17: 0.0002013888889 | F17: starší žáci | G17: 0.04166666667 | I17: 5 | J17: ŠPÁSOVÁ Magda | K17: CHLUMEC NAD CIDLINOU | L17: h | M17: =E16+E17 -> 0.0003496527778
A18: 50 | B18: 0.0002063657407 | C18: 0.0002037037037 | D18: 0.0002063657407 | E18: 0.0002037037037 | F18: starší žáci | G18: 0.04166666667 | I18: 6 | J18: MATOUŠEK Jiří | K18: CHLUMEC NAD CIDLINOU | L18: k
A19: 44 | B19: 0.0002215277778 | C19: 0.0002194444444 | D19: 0.0002215277778 | E19: 0.0002194444444 | F19: starší žáci | G19: 0.04166666667 | I19: 9 | J19: HORÁK Vojtěch | K19: CHLUMEC NAD CIDLINOU | L19: k
A20: 26 | B20: 0.0001646990741 | C20: 0.0002087962963 | D20: 0.0002087962963 | E20: 0.0001646990741 | F20: starší žáci | G20: 0.04166666667 | I20: 2 | J20: ŠEBEK David | K20: CHOLTICE | L20: k
A21: 32 | B21: 0.0001814814815 | C21: NP | D21: 0.04166666667 | E21: 0.0001814814815 | F21: starší žáci | G21: 0.04166666667 | I21: 3 | J21: ZERZÁN Lukáš | K21: CHOLTICE | L21: k | M21: =E20+E21 -> 0.0003461805556
A22: 38 | B22: 0.0001875 | C22: 0.0001996527778 | D22: 0.0001996527778 | E22: 0.0001875 | F22: starší žáci | G22: 0.04166666667 | I22: 5 | J22: KMONÍČEK Tomáš | K22: CHOLTICE | L22: k
A23: 48 | B23: 0.0002157407407 | C23: 0.0002204861111 | D23: 0.0002204861111 | E23: 0.0002157407407 | F23: starší žáci | G23: 0.04166666667 | I23: 7 | J23: HORÁK Jakub | K23: CHOLTICE | L23: k
A24: 42 | B24: 0.0002375 | C24: 0.0002358796296 | D24: 0.0002375 | E24: 0.0002358796296 | F24: starší žáci | G24: 0.04166666667 | I24: 12 | J24: POPOVIČ Jan | K24: CHOLTICE | L24: k
A25: 55 | B25: NP | C25: NP | D25: 0.04166666667 | E25: 0.04166666667 | F25: starší žáci | G25: 0.04166666667 | I25: 22 | J25: BAŽANTOVÁ Karolína | K25: CHOLTICE | L25: h
A26: 40 | B26: 0.0002577546296 | C26: 0.0002480324074 | D26: 0.0002577546296 | E26: 0.0002480324074 | F26: starší žáci | G26: 0.04166666667 | I26: 13 | J26: AUDRLICKÝ Václav | K26: KOMÁROV | L26: k
A27: 51 | B27: 0.0002719907407 | C27: 0.0002606481481 | D27: 0.0002719907407 | E27: 0.0002606481481 | F27: starší žáci | G27: 0.04166666667 | I27: 15 | J27: KOLMANOVÁ Jana | K27: KOMÁROV | L27: h | M27: =E26+E27 -> 0.0005086805556
A28: 58 | B28: NP | C28: 0.0002773148148 | D28: 0.04166666667 | E28: 0.0002773148148 | F28: starší žáci | G28: 0.04166666667 | I28: 17 | J28: BÁRTOVÁ Lenka | K28: KOMÁROV | L28: h
A29: 33 | B29: 0.000331712963 | C29: 0.000284837963 | D29: 0.000331712963 | E29: 0.000284837963 | F29: starší žáci | G29: 0.04166666667 | I29: 18 | J29: MÁLKOVÁ Adéla | K29: KOMÁROV | L29: h
A30: 36 | B30: 0.0002215277778 | C30: 0.0002888888889 | D30: 0.0002888888889 | E30: 0.0002215277778 | F30: starší žáci | G30: 0.04166666667 | I30: 10 | J30: VACEK Lukáš | K30: PARDUBICE | L30: k
A31: 37 | B31: 0.0001728009259 | C31: 0.0001728009259 | D31: 0.0001728009259 | E31: 0.0001728009259 | F31: starší žáci | I31: 3 | J31: KAPLANOVÁ Petra | K31: SLEPOTICE | L31: h
A32: 54 | B32: 0.0001850694444 | C32: 0.0002038194444 | D32: 0.0002038194444 | E32: 0.0001850694444 | F32: starší žáci | G32: 0.04166666667 | I32: 4 | J32: ROČEK Jan | K32: SLEPOTICE | L32: k | M32: =E31+E32 -> 0.0003578703704
A33: 41 | B33: 0.0001895833333 | C33: 0.000224537037 | D33: 0.000224537037 | E33: 0.0001895833333 | F33: starší žáci | G33: 0.04166666667 | I33: 4 | J33: ENDROVÁ Tereza | K33: SLEPOTICE | L33: h
A34: 59 | B34: 0.000208912037 | C34: 0.0002086805556 | D34: 0.000208912037 | E34: 0.0002086805556 | F34: starší žáci | G34: 0.04166666667 | I34: 7 | J34: HYNKOVÁ Veronika | K34: SLEPOTICE | L34: h
A35: 52 | B35: 0.000243287037 | C35: 0.0002184027778 | D35: 0.000243287037 | E35: 0.0002184027778 | F35: starší žáci | G35: 0.04166666667 | I35: 8 | J35: JANÁČEK Jindřich | K35: STÉBLOVÁ | L35: k
A36: 46 | B36: 0.0002900462963 | C36: 0.0002341435185 | D36: 0.0002900462963 | E36: 0.0002341435185 | F36: starší žáci | G36: 0.04166666667 | I36: 11 | J36: POSOLDA Jan | K36: STÉBLOVÁ | L36: k | M36: =E35+E36 -> 0.0004525462963
A37: 28 | B37: 0.0002542824074 | C37: 0.0003530092593 | D37: 0.0003530092593 | E37: 0.0002542824074 | F37: starší žáci | G37: 0.04166666667 | I37: 14 | J37: KOUHOUT Zdeněk | K37: STÉBLOVÁ | L37: k
A38: 60 | B38: 0.0002600694444 | C38: 0.0003023148148 | D38: 0.0003023148148 | E38: 0.0002600694444 | F38: starší žáci | G38: 0.04166666667 | I38: 14 | J38: KOLMANOVÁ Kateřina | K38: STÉBLOVÁ | L38: h
A39: 43 | B39: 0.0002959490741 | C39: 0.0003052083333 | D39: 0.0003052083333 | E39: 0.0002959490741 | F39: starší žáci | G39: 0.04166666667 | I39: 21 | J39: ŠPIDLENOVÁ Anežka | K39: STÉBLOVÁ | L39: h
A40: 34 | B40: 0.0004409722222 | C40: NP | D40: 0.04166666667 | E40: 0.0004409722222 | F40: starší žáci | G40: 0.04166666667 | I40: 17 | J40: EXNER Jan | K40: STÉBLOVÁ | L40: k
A41: 45 | B41: 0.0002462962963 | C41: 0.0002497685185 | D41: 0.0002497685185 | E41: 0.0002462962963 | F41: starší žáci | G41: 0.04166666667 | I41: 12 | J41: KALINOVÁ Kateřina | K41: VELINY | L41: h
A42: 24 | B42: 0.0002736111111 | C42: 0.0002678240741 | D42: 0.0002736111111 | E42: 0.0002678240741 | F42: starší žáci | G42: 0.04166666667 | I42: 16 | J42: VERNER Matěj | K42: VELINY | L42: k | M42: =E41+E42 -> 0.0005141203704
A43: 49 | B43: 0.0002857638889 | C43: 0.0003734953704 | D43: 0.0003734953704 | E43: 0.0002857638889 | F43: starší žáci | G43: 0.04166666667 | I43: 19 | J43: VESELÁ Kristýna | K43: VELINY | L43: h
A44: 61 | B44: NP | C44: NP | D44: 0.04166666667 | E44: 0.04166666667 | F44: starší žáci | G44: 0.04166666667 | I44: 22 | J44: URBANCOVÁ Petra | K44: VELINY | L44: h

Sheet JEDNOTLIVCI-TISK
A1: start. číslo | B1: I. rozběh | C1: II. rozběh | D1: horší běh | E1: lepší běh | F1: kategorie | G1: součet časů 2 nejlepších | H1: součet časů 2 nejlepších | I1: umístění jednotlivců | J1: jméno | K1: družstvo SDH
A4: 29 | B4: 0.0001803240741 | C4: 0.000171412037 | D4: =IF(MINA(B4,C4)=0,0.0416666666666667,MAX(B4,C4)) -> 0.0001803240741 | E4: =IF(MIN(B4,C4)=0,0.0416666666666667,MIN(B4,C4)) -> 0.000171412037 | F4: starší žáci | G4: 0.04166666667 | I4: 1 | J4: ŠMEJZOVÁ Nikol | K4: ČEPERKA
A5: 53 | B5: 0.0001717592593 | C5: 0.0002001157407 | D5: 0.0002001157407 | E5: 0.0001717592593 | F5: starší žáci | G5: 0.04166666667 | I5: 2 | J5: SEDLÁKOVÁ Kristína | K5: ČEPERKA
A6: 37 | B6: 0.0001728009259 | C6: 0.0001728009259 | D6: 0.0001728009259 | E6: 0.0001728009259 | F6: starší žáci | I6: 3 | J6: KAPLANOVÁ Petra | K6: SLEPOTICE
A7: 41 | B7: 0.0001895833333 | C7: 0.000224537037 | D7: 0.000224537037 | E7: 0.0001895833333 | F7: starší žáci | G7: 0.04166666667 | I7: 4 | J7: ENDROVÁ Tereza | K7: SLEPOTICE
A8: 27 | B8: 0.0002013888889 | C8: 0.0002038194444 | D8: 0.0002038194444 | E8: 0.0002013888889 | F8: starší žáci | G8: 0.04166666667 | I8: 5 | J8: ŠPÁSOVÁ Magda | K8: CHLUMEC NAD CIDLINOU
A9: 35 | B9: 0.0002060185185 | C9: NP | D9: 0.04166666667 | E9: 0.0002060185185 | F9: starší žáci | G9: 0.04166666667 | I9: 6 | J9: KOŽENÁ Karolína | K9: ČEPERKA
A10: 59 | B10: 0.000208912037 | C10: 0.0002086805556 | D10: 0.000208912037 | E10: 0.0002086805556 | F10: starší žáci | G10: 0.04166666667 | I10: 7 | J10: HYNKOVÁ Veronika | K10: SLEPOTICE
A11: 21 | B11: 0.0002273148148 | C11: 0.0002115740741 | D11: 0.0002273148148 | E11: 0.0002115740741 | F11: starší žáci | G11: 0.04166666667 | I11: 8 | J11: DVOŘÁKOVÁ Eliška | K11: ČEPERKA
A12: 25 | B12: 0.0002354166667 | C12: 0.0002229166667 | D12: 0.0002354166667 | E12: 0.0002229166667 | F12: starší žáci | G12: 0.04166666667 | I12: 9 | J12: BINKOVÁ Denisa | K12: HORNÍ ROVEŇ
A13: 31 | B13: 0.000330787037 | C13: 0.000227662037 | D13: 0.000330787037 | E13: 0.000227662037 | F13: starší žáci | G13: 0.04166666667 | I13: 10 | J13: GALLIKOVÁ Aneta | K13: HORNÍ ROVEŇ
A14: 47 | B14: 0.0002465277778 | C14: 0.0002454861111 | D14: 0.0002465277778 | E14: 0.0002454861111 | F14: starší žáci | G14: 0.04166666667 | I14: 11 | J14: ŠTĚPÁNKOVÁ Lenka | K14: HORNÍ ROVEŇ
A15: 45 | B15: 0.0002462962963 | C15: 0.0002497685185 | D15: 0.0002497685185 | E15: 0.0002462962963 | F15: starší žáci | G15: 0.04166666667 | I15: 12 | J15: KALINOVÁ Kateřina | K15: VELINY
A16: 23 | B16: 0.000258912037 | C16: 0.0003940972222 | D16: 0.0003940972222 | E16: 0.000258912037 | F16: starší žáci | G16: 0.04166666667 | I16: 13 | J16: PILAŘOVÁ Iva | K16: HOLICE
A17: 60 | B17: 0.0002600694444 | C17: 0.0003023148148 | D17: 0.0003023148148 | E17: 0.0002600694444 | F17: starší žáci | G17: 0.04166666667 | I17: 14 | J17: KOLMANOVÁ Kateřina | K17: STÉBLOVÁ
A18: 51 | B18: 0.0002719907407 | C18: 0.0002606481481 | D18: 0.0002719907407 | E18: 0.0002606481481 | F18: starší žáci | G18: 0.04166666667 | I18: 15 | J18: KOLMANOVÁ Jana | K18: KOMÁROV
A19: 39 | B19: 0.0002743055556 | C19: 0.000287037037 | D19: 0.000287037037 | E19: 0.0002743055556 | F19: starší žáci | G19: 0.04166666667 | I19: 16 | J19: HORÁKOVÁ Sabina | K19: HOLICE
A20: 58 | B20: NP | C20: 0.0002773148148 | D20: 0.04166666667 | E20: 0.0002773148148 | F20: starší žáci | G20: 0.04166666667 | I20: 17 | J20: BÁRTOVÁ Lenka | K20: KOMÁROV
A21: 33 | B21: 0.000331712963 | C21: 0.000284837963 | D21: 0.000331712963 | E21: 0.000284837963 | F21: starší žáci | G21: 0.04166666667 | I21: 18 | J21: MÁLKOVÁ Adéla | K21: KOMÁROV
A22: 49 | B22: 0.0002857638889 | C22: 0.0003734953704 | D22: 0.0003734953704 | E22: 0.0002857638889 | F22: starší žáci | G22: 0.04166666667 | I22: 19 | J22: VESELÁ Kristýna | K22: VELINY
A23: 57 | B23: 0.0002949074074 | C23: 0.0002988425926 | D23: 0.0002988425926 | E23: 0.0002949074074 | F23: starší žáci | G23: 0.04166666667 | I23: 20 | J23: ŠTĚPÁNKOVÁ Petra | K23: HORNÍ ROVEŇ
A24: 43 | B24: 0.0002959490741 | C24: 0.0003052083333 | D24: 0.0003052083333 | E24: 0.0002959490741 | F24: starší žáci | G24: 0.04166666667 | I24: 21 | J24: ŠPIDLENOVÁ Anežka | K24: STÉBLOVÁ
A25: 55 | B25: NP | C25: NP | D25: 0.04166666667 | E25: 0.04166666667 | F25: starší žáci | G25: 0.04166666667 | I25: 22 | J25: BAŽANTOVÁ Karolína | K25: CHOLTICE
A26: 61 | B26: NP | C26: NP | D26: 0.04166666667 | E26: 0.04166666667 | F26: starší žáci | G26: 0.04166666667 | I26: 22 | J26: URBANCOVÁ Petra | K26: VELINY
A27: 30 | B27: 0.0001482638889 | C27: 0.0001709490741 | D27: 0.0001709490741 | E27: 0.0001482638889 | F27: starší žáci | G27: 0.04166666667 | I27: 1 | J27: DRAHORÁD Tomáš | K27: CHLUMEC NAD CIDLINOU
A28: 26 | B28: 0.0001646990741 | C28: 0.0002087962963 | D28: 0.0002087962963 | E28: 0.0001646990741 | F28: starší žáci | G28: 0.04166666667 | I28: 2 | J28: ŠEBEK David | K28: CHOLTICE
A29: 32 | B29: 0.0001814814815 | C29: NP | D29: 0.04166666667 | E29: 0.0001814814815 | F29: starší žáci | G29: 0.04166666667 | I29: 3 | J29: ZERZÁN Lukáš | K29: CHOLTICE
A30: 54 | B30: 0.0001850694444 | C30: 0.0002038194444 | D30: 0.0002038194444 | E30: 0.0001850694444 | F30: starší žáci | G30: 0.04166666667 | I30: 4 | J30: ROČEK Jan | K30: SLEPOTICE
A31: 38 | B31: 0.0001875 | C31: 0.0001996527778 | D31: 0.0001996527778 | E31: 0.0001875 | F31: starší žáci | G31: 0.04166666667 | I31: 5 | J31: KMONÍČEK Tomáš | K31: CHOLTICE
A32: 50 | B32: 0.0002063657407 | C32: 0.0002037037037 | D32: 0.0002063657407 | E32: 0.0002037037037 | F32: starší žáci | G32: 0.04166666667 | I32: 6 | J32: MATOUŠEK Jiří | K32: CHLUMEC NAD CIDLINOU
A33: 48 | B33: 0.0002157407407 | C33: 0.0002204861111 | D33: 0.0002204861111 | E33: 0.0002157407407 | F33: starší žáci | G33: 0.04166666667 | I33: 7 | J33: HORÁK Jakub | K33: CHOLTICE
A34: 52 | B34: 0.000243287037 | C34: 0.0002184027778 | D34: 0.000243287037 | E34: 0.0002184027778 | F34: starší žáci | G34: 0.04166666667 | I34: 8 | J34: JANÁČEK Jindřich | K34: STÉBLOVÁ
A35: 44 | B35: 0.0002215277778 | C35: 0.0002194444444 | D35: 0.0002215277778 | E35: 0.0002194444444 | F35: starší žáci | G35: 0.04166666667 | I35: 9 | J35: HORÁK Vojtěch | K35: CHLUMEC NAD CIDLINOU
A36: 36 | B36: 0.0002215277778 | C36: 0.0002888888889 | D36: 0.0002888888889 | E36: 0.0002215277778 | F36: starší žáci | G36: 0.04166666667 | I36: 10 | J36: VACEK Lukáš | K36: PARDUBICE
A37: 46 | B37: 0.0002900462963 | C37: 0.0002341435185 | D37: 0.0002900462963 | E37: 0.0002341435185 | F37: starší žáci | G37: 0.04166666667 | I37: 11 | J37: POSOLDA Jan | K37: STÉBLOVÁ
A38: 42 | B38: 0.0002375 | C38: 0.0002358796296 | D38: 0.0002375 | E38: 0.0002358796296 | F38: starší žáci | G38: 0.04166666667 | I38: 12 | J38: POPOVIČ Jan | K38: CHOLTICE
A39: 40 | B39: 0.0002577546296 | C39: 0.0002480324074 | D39: 0.0002577546296 | E39: 0.0002480324074 | F39: starší žáci | G39: 0.04166666667 | I39: 13 | J39: AUDRLICKÝ Václav | K39: KOMÁROV
A40: 28 | B40: 0.0002542824074 | C40: 0.0003530092593 | D40: 0.0003530092593 | E40: 0.0002542824074 | F40: starší žáci | G40: 0.04166666667 | I40: 14 | J40: KOUHOUT Zdeněk | K40: STÉBLOVÁ
A41: 22 | B41: 0.0002546296296 | C41: 0.0002556712963 | D41: 0.0002556712963 | E41: 0.0002546296296 | F41: starší žáci | I41: 15 | J41: PETERA Vojtěch | K41: HOLICE
A42: 24 | B42: 0.0002736111111 | C42: 0.0002678240741 | D42: 0.0002736111111 | E42: 0.0002678240741 | F42: starší žáci | G42: 0.04166666667 | I42: 16 | J42: VERNER Matěj | K42: VELINY
A43: 34 | B43: 0.0004409722222 | C43: NP | D43: 0.04166666667 | E43: 0.0004409722222 | F43: starší žáci | G43: 0.04166666667 | I43: 17 | J43: EXNER Jan | K43: STÉBLOVÁ
A44: 56 | B44: NP | C44: NP | D44: 0.04166666667 | E44: 0.04166666667 | F44: starší žáci | G44: 0.04166666667 | I44: 18 | J44: SEDLÁK Patrik | K44: ČEPERKA
